Workbook

Sheet Mittelhilfstabelle
A2: Stunde | B2: Wind | C2: Luftfeuchtigkeit | D2: Luftdruck | E2: Taupunkttemperatur | F2: Bewölkung | H2: Stunde | I2: Wind | J2: Luftfeuchtigkeit | K2: Luftdruck | L2: Taupunkttemperatur | M2: Bewölkung
A3: 00 | B3: 1 | C3: 95 | D3: 1017.4 | E3: 4 | F3: 0 | H3: 00 | I3: 1 | J3: 91 | K3: 1015.5 | L3: 3.1 | M3: 0
A4: 01 | B4: 2 | C4: 96 | D4: 1017.3 | E4: 3.6 | F4: 0 | H4: 01 | I4: 1 | J4: 94 | K4: 1015.3 | L4: 2.5 | M4: 0
A5: 02 | B5: 1 | C5: 96 | D5: 1017.2 | E5: 3.1 | F5: 0 | H5: 02 | I5: 1 | J5: 95 | K5: 1014.9 | L5: 2 | M5: 0
A6: 03 | B6: 1 | C6: 96 | D6: 1017.2 | E6: 2.4 | F6: 0 | H6: 03 | I6: 1 | J6: 95 | K6: 1014.8 | L6: 1.4 | M6: 0
A7: 04 | B7: 1 | C7: 96 | D7: 1017.4 | E7: 2.1 | F7: 0 | H7: 04 | I7: 1 | J7: 96 | K7: 1014.8 | L7: 1.5 | M7: 0
A8: 05 | B8: 1 | C8: 97 | D8: 1017.2 | E8: 2 | F8: 0 | H8: 05 | I8: 1 | J8: 96 | K8: 1014.6 | L8: 1.1 | M8: 0
A9: 06 | B9: 1 | C9: 97 | D9: 1017.2 | E9: 1.7 | F9: 1 | H9: 06 | I9: 1 | J9: 96 | K9: 1014.5 | L9: 0.8 | M9: 0
A10: 07 | B10: 0 | C10: 97 | D10: 1017.3 | E10: 2.1 | F10: 1 | H10: 07 | I10: 1 | J10: 97 | K10: 1014.7 | L10: 1.1 | M10: 0
A11: 08 | B11: 1 | C11: 96 | D11: 1017.5 | E11: 3.9 | F11: 2 | H11: 08 | I11: 0 | J11: 96 | K11: 1014.9 | L11: 3.1 | M11: 0
A12: 09 | B12: 1 | C12: 92 | D12: 1017.9 | E12: 6.2 | F12: 1 | H12: 09 | I12: 1 | J12: 89 | K12: 1014.8 | L12: 4.7 | M12: 1
A13: 10 | B13: 1 | C13: 74 | D13: 1017.2 | E13: 6.9 | F13: 2 | H13: 10 | I13: 1 | J13: 76 | K13: 1014.4 | L13: 5.7 | M13: 1
A14: 11 | B14: 1 | C14: 64 | D14: 1016.7 | E14: 6.3 | F14: 4 | H14: 11 | I14: 1 | J14: 65 | K14: 1013.9 | L14: 5 | M14: 1
A15: 12 | B15: 2 | C15: 62 | D15: 1016.5 | E15: 6.5 | F15: 3 | H15: 12 | I15: 1 | J15: 59 | K15: 1013.8 | L15: 5.3 | M15: 1
A16: 13 | B16: 2 | C16: 61 | D16: 1016 | E16: 6.6 | F16: 4 | H16: 13 | I16: 2 | J16: 57 | K16: 1013.3 | L16: 5.2 | M16: 1
A17: 14 | B17: 2 | C17: 61 | D17: 1015.6 | E17: 7.1 | F17: 3 | H17: 14 | I17: 2 | J17: 58 | K17: 1013 | L17: 5.8 | M17: 2
A18: 15 | B18: 2 | C18: 63 | D18: 1015.1 | E18: 7 | F18: 2 | H18: 15 | I18: 2 | J18: 60 | K18: 1013 | L18: 5.6 | M18: 3
A19: 16 | B19: 2 | C19: 67 | D19: 1015.2 | E19: 6.8 | F19: 1 | H19: 16 | I19: 2 | J19: 64 | K19: 1013 | L19: 5.7 | M19: 3
A20: 17 | B20: 1 | C20: 74 | D20: 1015.3 | E20: 6.6 | F20: 1 | H20: 17 | I20: 2 | J20: 64 | K20: 1013.3 | L20: 4.6 | M20: 3
A21: 18 | B21: 1 | C21: 76 | D21: 1015.4 | E21: 5.7 | F21: 1 | H21: 18 | I21: 1 | J21: 71 | K21: 1013.8 | L21: 4.4 | M21: 1
A22: 19 | B22: 1 | C22: 79 | D22: 1015.5 | E22: 5.2 | F22: 1 | H22: 19 | I22: 0 | J22: 78 | K22: 1014 | L22: 4.2 | M22: 1
A23: 20 | B23: 0 | C23: 83 | D23: 1015.6 | E23: 4.9 | F23: 0 | H23: 20 | I23: 0 | J23: 80 | K23: 1014.4 | L23: 4.1 | M23: 2
A24: 21 | B24: 0 | C24: 86 | D24: 1015.6 | E24: 4.5 | F24: 0 | H24: 21 | I24: 1 | J24: 84 | K24: 1014.4 | L24: 3.2 | M24: 2
A25: 22 | B25: 0 | C25: 88 | D25: 1015.6 | E25: 4.4 | F25: 0 | H25: 22 | I25: 1 | J25: 89 | K25: 1014.8 | L25: 2.6 | M25: 0
A26: 23 | B26: 1 | C26: 90 | D26: 1015.6 | E26: 3.8 | F26: 0 | H26: 23 | I26: 1 | J26: 92 | K26: 1014.9 | L26: 2.3 | M26: 0
A27: Mittel | B27: =ROUND(AVERAGE(B3:B26),1) -> 1.1 | C27: =ROUND(AVERAGE(C3:C26),1) -> 82.8 | D27: =ROUND(AVERAGE(D3:D26),1) -> 1016.4 | E27: =AVERAGE(E3:E26) -> 4.725 | F27: =ROUND(AVERAGE(F3:F26),1) -> 1.1 | H27: Mittel | I27: =ROUND(AVERAGE(I3:I26),1) -> 1.1 | J27: =ROUND(AVERAGE(J3:J26),1) -> 80.9 | K27: =ROUND(AVERAGE(K3:K26),1) -> 1014.3 | L27: =AVERAGE(L3:L26) -> 3.541666667 | M27: =ROUND(AVERAGE(M3:M26),1) -> 0.9
E29: 2013-09-29 | L29: 2013-09-30
A32: Stunde | B32: Wind | C32: Luftfeuchtigkeit | D32: Luftdruck | E32: Taupunkttemperatur | F32: Bewölkung | H32: Stunde | I32: Wind | J32: Luftfeuchtigkeit | K32: Luftdruck | L32: Taupunkttemperatur | M32: Bewölkung
A33: 00 | B33: 1 | C33: 93 | D33: 1014.8 | E33: 1.6 | F33: 0 | H33: 00 | I33: 0 | J33: 95 | K33: 1018.3 | L33: 3.1 | M33: 1
A34: 01 | B34: 1 | C34: 94 | D34: 1015 | E34: 1.1 | F34: 0 | H34: 01 | I34: 1 | J34: 96 | K34: 1017.8 | L34: 2.8 | M34: 2
A35: 02 | B35: 1 | C35: 95 | D35: 1015 | E35: 0.7 | F35: 0 | H35: 02 | I35: 1 | J35: 96 | K35: 1017.9 | L35: 2.5 | M35: 1
A36: 03 | B36: 1 | C36: 95 | D36: 1015 | E36: 0.4 | F36: 0 | H36: 03 | I36: 1 | J36: 96 | K36: 1017.8 | L36: 2.5 | M36: 2
A37: 04 | B37: 1 | C37: 95 | D37: 1015.2 | E37: 0 | F37: 0 | H37: 04 | I37: 0 | J37: 96 | K37: 1017.7 | L37: 2.1 | M37: 0
A38: 05 | B38: 1 | C38: 95 | D38: 1015.2 | E38: -0.5 | F38: 0 | H38: 05 | I38: 0 | J38: 97 | K38: 1017.5 | L38: 1.8 | M38: 0
A39: 06 | B39: 0 | C39: 95 | D39: 1015.4 | E39: -0.9 | F39: 0 | H39: 06 | I39: 0 | J39: 96 | K39: 1017.5 | L39: 1.5 | M39: 0
A40: 07 | H40: 07 | I40: 0 | J40: 97 | K40: 1017.6 | L40: 2 | M40: 4
A41: 08 | H41: 08 | I41: 1 | J41: 97 | K41: 1017.9 | L41: 4 | M41: 3
A42: 09 | H42: 09 | I42: 1 | J42: 94 | K42: 1017.9 | L42: 5.4 | M42: 3
A43: 10 | H43: 10 | I43: 0 | J43: 85 | K43: 1017.7 | L43: 7.1 | M43: 6
A44: 11 | H44: 11 | I44: 1 | J44: 75 | K44: 1017.3 | L44: 8.3 | M44: 5
A45: 12 | H45: 12 | I45: 1 | J45: 65 | K45: 1017 | L45: 6.9 | M45: 4
A46: 13 | H46: 13 | I46: 1 | J46: 62 | K46: 1016.5 | L46: 7.5 | M46: 3
A47: 14 | H47: 14 | I47: 1 | J47: 56 | K47: 1016.1 | L47: 6.3 | M47: 3
A48: 15 | H48: 15 | I48: 0 | J48: 53 | K48: 1015.6 | L48: 5.4 | M48: 4
A49: 16 | H49: 16 | I49: 1 | J49: 67 | K49: 1015.5 | L49: 7.5 | M49: 5
A50: 17 | H50: 17 | I50: 1 | J50: 72 | K50: 1015.6 | L50: 7.3 | M50: 2
A51: 18 | H51: 18 | I51: 1 | J51: 76 | K51: 1015.8 | L51: 6.9 | M51: 1
A52: 19 | H52: 19 | I52: 0 | J52: 82 | K52: 1016.4 | L52: 7 | M52: 2
A53: 20 | H53: 20 | I53: 1 | J53: 85 | K53: 1016.7 | L53: 6.9 | M53: 5
A54: 21 | H54: 21 | I54: 0 | J54: 90 | K54: 1016.9 | L54: 6.3 | M54: 3
A55: 22 | H55: 22 | I55: 1 | J55: 91 | K55: 1017 | L55: 5.2 | M55: 3
A56: 23 | H56: 23 | I56: 1 | J56: 94 | K56: 1017.1 | L56: 4.6 | M56: 1
A57: Mittel | B57: =ROUND(AVERAGE(B33:B56),1) -> 0.9 | C57: =ROUND(AVERAGE(C33:C56),1) -> 94.6 | D57: =ROUND(AVERAGE(D33:D56),1) -> 1015.1 | E57: =AVERAGE(E33:E56) -> 0.3428571429 | F57: =ROUND(AVERAGE(F33:F56),1) -> 0 | H57: Mittel | I57: =ROUND(AVERAGE(I33:I56),1) -> 0.6 | J57: =ROUND(AVERAGE(J33:J56),1) -> 83.9 | K57: =ROUND(AVERAGE(K33:K56),1) -> 1017 | L57: =AVERAGE(L33:L56) -> 5.0375 | M57: =ROUND(AVERAGE(M33:M56),1) -> 2.6
E59: 2013-10-01 | L59: 2013-09-28

Sheet Kurztabelle
A2: Wetterwarte: Köttewitz | L2: Monat: | M2: September | Y2: Jahr: | Z2: 2013
A4: Dat. | B4: TTT | C4: TxTx | D4: TnTn | E4: Tg | F4: Umin. | G4: UU | H4: NN | I4: RRRR | J4: Art | L4: sss | M4: PPPP | N4: eee | O4: fff | R4: Tage mit | V4: fk | W4: Summe
J5: * | O5: Bft | P5: SS | Q5: Art ( D ) | R5: RR | S5: Ge | T5: Bf6 | U5: Bf8 | V5: Bft | W5: Gewitter
A6: 01. | B6: 14.4 | C6: 17.9 | D6: 11.2 | E6: 10 | F6: 47 | G6: 69 | H6: 6.3 | I6: . | L6: 2.1 | M6: 1022 | N6: 8.7 | O6: 1 | V6: 4 | AA6: max >=30,0°C | AB6: max >=25,0°C | AC6: max <0,0°C | AE6: RR >=0,1 mm | AF6: RR >=1,0 mm | AG6: RR >=3,0 mm | AH6: RR >=10,0 mm
A7: 02. | B7: 14.5 | C7: 16.8 | D7: 12.7 | E7: 11.7 | F7: 64 | G7: 78 | H7: 7.6 | I7: 2.1 | J7: R | L7: . | M7: 1019.8 | N7: 10.5 | O7: 1 | R7: 1 | V7: 5 | AA7: =COUNTIF(C6:C15,">=30") -> 0 | AB7: =COUNTIF(C6:C15,">=25") -> 4 | AC7: =COUNTIF(C6:C15,"<0") -> 0 | AE7: =COUNTIF(I6:I15,">=0,1") -> 7 | AF7: =COUNTIF(I6:I15,">=1") -> 5 | AG7: =COUNTIF(I6:I15,">=3") -> 1 | AH7: =COUNTIF(I6:I15,">=10") -> 1
A8: 03. | B8: 16.5 | C8: 18.1 | D8: 15.3 | E8: 15 | F8: 88 | G8: 92 | H8: 8 | I8: 1.8 | J8: R | L8: . | M8: 1023 | N8: 15.2 | O8: 1 | R8: 1 | V8: 4 | AA8: =COUNTIF(C18:C27,">=30") -> 0 | AB8: =COUNTIF(C18:C27,">=25") -> 0 | AC8: =COUNTIF(C18:C27,"<0") -> 0 | AE8: =COUNTIF(I18:I27,">=0,1") -> 8 | AF8: =COUNTIF(I18:I27,">=1") -> 4 | AG8: =COUNTIF(I18:I27,">=3") -> 1 | AH8: =COUNTIF(I18:I27,">=10") -> 0
A9: 04. | B9: 17.8 | C9: 23.3 | D9: 13.7 | E9: 12.8 | F9: 68 | G9: 89 | H9: 6.3 | I9: 0.3 | J9: R | L9: 1.5 | M9: 1024.4 | N9: 16 | O9: 0 | R9: 1 | V9: 2 | AA9: =COUNTIF(C30:C39,">=30") -> 0 | AB9: =COUNTIF(C30:C39,">=25") -> 0 | AC9: =COUNTIF(C30:C39,"<0") -> 0 | AE9: =COUNTIF(I30:I39,">=0,1") -> 6 | AF9: =COUNTIF(I30:I39,">=1") -> 1 | AG9: =COUNTIF(I30:I39,">=3") -> 1 | AH9: =COUNTIF(I30:I39,">=10") -> 1
A10: 05. | B10: 17.6 | C10: 25.1 | D10: 10.9 | E10: 9.4 | F10: 52 | G10: 82 | H10: 1.1 | I10: 0.1 | J10: R | L10: 7.8 | M10: 1019 | N10: 14.1 | O10: 1 | R10: 1 | V10: 3
A11: 06. | B11: 18.4 | C11: 25.7 | D11: 12.6 | E11: 10 | F11: 47 | G11: 72 | H11: 0.2 | I11: . | L11: 8.3 | M11: 1014.9 | N11: 12.6 | O11: 1 | V11: 3 | AA11: min <0,0°C | AB11: min <0-10,0°C | AE11: rel.Lf. 14h >=70% | AG11: rel.Lf. 14h <=40%
A12: 07. | B12: 19.1 | C12: 27.2 | D12: 11.6 | E12: 10 | F12: 40 | G12: 67 | H12: 0.1 | I12: . | L12: 7.6 | M12: 1017.5 | N12: 12.1 | O12: 0 | V12: 3 | AA12: =COUNTIF(D6:D15,"<0") -> 0 | AB12: =COUNTIF(D6:D15,"<=-10") -> 0 | AE12: =COUNTIF(F6:F15,">=70") -> 2 | AG12: =COUNTIF(F6:F15,"<=40") -> 1
A13: 08. | B13: 19.7 | C13: 26.9 | D13: 12.8 | E13: 10.6 | F13: 44 | G13: 67 | H13: 5.1 | I13: 16 | J13: R | L13: 3.1 | M13: 1017.2 | N13: 12.9 | O13: 1 | R13: 1 | V13: 3 | AA13: =COUNTIF(D18:D27,"<0") -> 0 | AB13: =COUNTIF(D18:D27,"<=-10") -> 0 | AE13: =COUNTIF(F18:F27,">=70") -> 5 | AG13: =COUNTIF(F18:F27,"<=40") -> 0
A14: 09. | B14: 13.8 | C14: 17.9 | D14: 8.8 | E14: 7.8 | F14: 82 | G14: 91 | H14: 6.7 | I14: 2.1 | J14: R | L14: . | M14: 1015.1 | N14: 12.6 | O14: 1 | R14: 1 | S14: 1 | V14: 3 | AA14: =COUNTIF(D30:D39,"<0") -> 0 | AB14: =COUNTIF(D30:D39,"<=-10") -> 0 | AE14: =COUNTIF(F30:F39,">=70") -> 4 | AG14: =COUNTIF(F30:F39,"<=40") -> 0
A15: 10. | B15: 12.5 | C15: 16.9 | D15: 8.1 | E15: 6.7 | F15: 64 | G15: 86 | H15: 6.3 | I15: 1.7 | J15: R | L15: 0.2 | M15: 1014.1 | N15: 10.1 | O15: 1 | R15: 1 | V15: 3
A16: Su | B16: =SUM(B6:B15) -> 164.3 | C16: =SUM(C6:C15) -> 215.8 | D16: 117.7 | E16: 104 | F16: XXX | G16: XXX | H16: =SUM(H6:H15) -> 47.7 | I16: =SUM(I6:I15) -> 24.1 | J16: XX | L16: =SUM(L6:L15) -> 30.6 | M16: =SUM(M6:M15) -> 10187 | N16: 124.8 | O16: 8 | P16: =COUNT(P6:P15) -> 0 | Q16: X | R16: =SUM(R6:R15) -> 7 | S16: =SUM(S6:S15) -> 1 | T16: 0 | U16: 0 | V16: XXX | AA16: ohne Sonne | AB16: Son. 0,1-0,9 | AC16: Son. >=10,0 | AE16: Sch. >=1 cm | AF16: Sch. >=3 cm | AG16: Sch. >=10 cm
A17: Mi | B17: =AVERAGE(B6:B15) -> 16.43 | C17: =AVERAGE(C6:C15) -> 21.58 | D17: 11.77 | E17: 10.4 | F17: XXX | G17: 79.3 | H17: 4.77 | I17: =I16/10 -> 2.41 | J17: XX | L17: =L16/10 -> 3.06 | M17: =AVERAGE(M6:M15) -> 1018.7 | N17: =AVERAGE(N6:N15) -> 12.48 | O17: 0.8 | P17: XXX | Q17: X | R17: XX | S17: XX | T17: XX | U17: XX | V17: =AVERAGE(V6:V15) -> 3.3 | AA17: =COUNTIF(L6:L15,".") -> 3 | AB17: =COUNTIF(L6:L15,"<1") -> 1 | AC17: =COUNTIF(L6:L15,">=10") -> 0 | AE17: =COUNTIF(P6:P15,">=1") -> 0 | AF17: =COUNTIF(P6:P15,">=3") -> 0 | AG17: =COUNTIF(P6:P15,">=10") -> 0
A18: 11. | B18: 12.1 | C18: 16.1 | D18: 7.6 | E18: 6.1 | F18: 65 | G18: 82 | H18: 5.6 | I18: 0.1 | J18: R | L18: 1 | M18: 1012.6 | N18: 8.9 | O18: 1 | R18: 1 | V18: 3 | AA18: =COUNTIF(L18:L27,".") -> 3 | AB18: =COUNTIF(L18:L27,"<1") -> 3 | AC18: =COUNTIF(L18:L27,">=10") -> 0 | AE18: =COUNTIF(P18:P27,">=1") -> 0 | AF18: =COUNTIF(P18:P27,">=3") -> 0 | AG18: =COUNTIF(P18:P27,">=10") -> 0
A19: 12. | B19: 12.8 | C19: 15.2 | D19: 11.1 | E19: 10 | F19: 70 | G19: 85 | H19: 7.8 | I19: 2 | J19: R | L19: 0.1 | M19: 1013.2 | N19: 10.9 | O19: 1 | R19: 1 | V19: 2 | AA19: =COUNTIF(L30:L39,".") -> 5 | AB19: =COUNTIF(L30:L39,"<1") -> 1 | AC19: =COUNTIF(L30:L39,">=10") -> 0 | AE19: =COUNTIF(P30:P39,">=1") -> 0 | AF19: =COUNTIF(P30:P39,">=3") -> 0 | AG19: =COUNTIF(P30:P39,">=10") -> 0
A20: 13. | B20: 14.2 | C20: 18.2 | D20: 11.6 | E20: 11.1 | F20: 62 | G20: 85 | H20: 7.4 | I20: 0.2 | J20: R | L20: 1.4 | M20: 1017.1 | N20: 11.6 | O20: 1 | R20: 1 | V20: 3
A21: 14. | B21: 16.3 | C21: 21.4 | D21: 13 | E21: 12.2 | F21: 50 | G21: 77 | H21: 4.8 | I21: 0 | L21: 5.7 | M21: 1013.8 | N21: 12 | O21: 1 | V21: 3 | AA21: Max TT | AB21: Max TxTx | AC21: Min TgTg | AE21: Max RR
A22: 15. | B22: 14.4 | C22: 16 | D22: 12.9 | E22: 11.7 | F22: 84 | G22: 92 | H22: 7.6 | I22: 0.7 | J22: R | L22: . | M22: 1009.5 | N22: 13.2 | O22: 0 | R22: 1 | V22: 2 | AA22: =MAX(B6:B15,B18:B27,B30:B39) -> 19.7 | AB22: =MAX(C6:C15,C18:C27,C30:C39) -> 27.2 | AC22: =MIN(E6:E15,E18:E27,E30:E39) -> 0 | AE22: =MAX(I6:I15,I18:I27,I30:I39) -> 16
A23: 16. | B23: 13.9 | C23: 17.1 | D23: 12.7 | E23: 11.7 | F23: 68 | G23: 83 | H23: 8 | I23: 4.5 | J23: R | L23: . | M23: 1002.5 | N23: 11.1 | O23: 0 | R23: 1 | V23: 3 | AA23: Min TT | AB23: Min TnTn | AC23: Min U14 | AE23: Max SS
A24: 17. | B24: 10.2 | C24: 15.4 | D24: 6.4 | E24: 4.4 | F24: 55 | G24: 81 | H24: 6.2 | I24: . | L24: 1.1 | M24: 1003.1 | N24: 7.1 | O24: 1 | V24: 3 | AA24: =MIN(B6:B15,B18:B27,B30:B39) -> 6.9 | AB24: =MIN(D6:D15,D18:D27,D30:D39) -> 1 | AC24: =MIN(F6:F15,F18:F27,F30:F39) -> 40 | AE24: =MAX(P6:P15,P18:P27,P30:P39) -> 0
A25: 18. | B25: 10.1 | C25: 14.2 | D25: 6.3 | E25: 4.4 | F25: 79 | G25: 87 | H25: 7.5 | I25: 1 | J25: R | L25: 0.3 | M25: 998.7 | N25: 7.9 | O25: 1 | R25: 1 | V25: 3
A26: 19. | B26: 10.8 | C26: 14.1 | D26: 8.7 | E26: 7.8 | F26: 70 | G26: 83 | H26: 6.9 | I26: 0.9 | J26: R | L26: 0.6 | M26: 1009.3 | N26: 8 | O26: 1 | R26: 1 | V26: 3
A27: 20. | B27: 12.7 | C27: 15.3 | D27: 9.6 | E27: 8.9 | F27: 76 | G27: 83 | H27: 7.5 | I27: 2 | J27: R | L27: . | M27: 1013.6 | N27: 9.6 | O27: 1 | R27: 1 | V27: 3
A28: Su | B28: =SUM(B18:B27) -> 127.5 | C28: =SUM(C18:C27) -> 163 | D28: 99.9 | E28: 88.3 | F28: XXX | G28: XXX | H28: =SUM(H18:H27) -> 69.3 | I28: =SUM(I18:I27) -> 11.4 | J28: XX | L28: =SUM(L18:L27) -> 10.2 | M28: =SUM(M18:M27) -> 10093.4 | N28: 100.3 | O28: 8 | P28: =COUNT(P18:P27) -> 0 | Q28: X | R28: =SUM(R18:R27) -> 8 | S28: =SUM(S18:S27) -> 0 | T28: 0 | U28: 0 | V28: XXX
A29: Mi | B29: =AVERAGE(B18:B27) -> 12.75 | C29: =AVERAGE(C18:C27) -> 16.3 | D29: 9.99 | E29: 8.83 | F29: 67.9 | G29: 83.8 | H29: 6.93 | I29: =I28/10 -> 1.14 | J29: XX | L29: =L28/10 -> 1.02 | M29: =AVERAGE(M18:M27) -> 1009.34 | N29: =AVERAGE(N18:N27) -> 10.03 | O29: 0.8 | P29: XXX | Q29: X | R29: XX | S29: XX | T29: XX | U29: XX | V29: =AVERAGE(V18:V27) -> 2.8
A30: 21. | B30: 12.9 | C30: 16.6 | D30: 10.5 | E30: 9.4 | F30: 66 | G30: 87 | H30: 7.4 | I30: 0.1 | J30: R | L30: 0.8 | M30: 1023.3 | N30: 11 | O30: 1 | R30: 1 | V30: 3
A31: 22. | B31: 13.9 | C31: 16.8 | D31: 10.2 | E31: 8.9 | F31: 65 | G31: 83 | H31: 7.5 | I31: 0.4 | J31: R | L31: . | M31: 1025.5 | N31: 10.8 | O31: 1 | R31: 1 | V31: 3
A32: 23. | B32: 15.3 | C32: 16.4 | D32: 14 | E32: 13.3 | F32: 78 | G32: 86 | H32: 7.9 | I32: 0.5 | J32: R | L32: . | M32: 1020 | N32: 12.9 | O32: 1 | R32: 1 | V32: 4
A33: 24. | B33: 14.6 | C33: 16.7 | D33: 10.5 | E33: 10.6 | F33: 77 | G33: 85 | H33: 8 | I33: 0.9 | J33: R | L33: . | M33: 1015.3 | N33: 12.1 | O33: 1 | R33: 1 | V33: 3
A34: 25. | B34: 12.2 | C34: 14.6 | D34: 10 | E34: 9.4 | F34: 84 | G34: 92 | H34: 7.6 | I34: 0.5 | J34: R | L34: . | M34: 1012.7 | N34: 10.9 | O34: 1 | R34: 1 | V34: 3
A35: 26. | B35: 11.8 | C35: 15.8 | D35: 6.8 | E35: 6.1 | F35: 84 | G35: 92 | H35: 6.8 | I35: 11.1 | J35: R | L35: . | M35: 1012.1 | N35: 10.6 | O35: 1 | R35: 1 | V35: 4
A36: 27. | B36: 7.6 | C36: 13.8 | D36: 3 | E36: 2.2 | F36: 55 | G36: 86 | H36: 3.2 | I36: . | L36: 4.8 | M36: 1019 | N36: 5.2 | O36: 1 | V36: 2
A37: 28. | B37: 7.9 | C37: 15.6 | D37: 1.8 | E37: 1.1 | F37: 51 | G37: 84 | H37: 2.6 | I37: . | L37: 5.3 | M37: 1017 | N37: 5 | O37: 1 | V37: 2
A38: 29. | B38: 7.8 | C38: 14.8 | D38: 1.7 | E38: 1.1 | F38: 58 | G38: 83 | H38: 1.1 | I38: . | L38: 5.3 | M38: 1016.4 | N38: 4.7 | O38: 1 | V38: 4
A39: 30. | B39: 6.9 | C39: 14.2 | D39: 1 | E39: 0 | F39: 55 | G39: 81 | H39: 0.9 | I39: . | L39: 5.1 | M39: 1014.3 | N39: 3.5 | O39: 1 | V39: 4
A40: Su | B40: =SUM(B30:B39) -> 110.9 | C40: =SUM(C30:C39) -> 155.3 | D40: =SUM(D30:D39) -> 69.5 | E40: =SUM(E30:E39) -> 62.1 | F40: XXX | G40: =SUM(G30:G39) -> 859 | H40: =SUM(H30:H39) -> 53 | I40: =SUM(I30:I39) -> 13.5 | J40: XX | L40: =SUM(L30:L39) -> 21.3 | M40: =SUM(M30:M39) -> 10175.6 | N40: =SUM(N30:N39) -> 86.7 | O40: =SUM(O30:O39) -> 10 | P40: =COUNT(P30:P39) -> 0 | Q40: X | R40: =SUM(R30:R39) -> 6 | S40: =SUM(S30:S39) -> 0 | T40: =SUM(T30:T39) -> 0 | U40: =SUM(U30:U39) -> 0 | V40: XXX
A41: Mi | B41: =AVERAGE(B30:B39) -> 11.09 | C41: =AVERAGE(C40/10) -> 15.53 | D41: =AVERAGE(D40/10) -> 6.95 | E41: 6.21 | F41: XXX | G41: =AVERAGE(G40/10) -> 85.9 | H41: =AVERAGE(H40/10) -> 5.3 | I41: XXXXX | J41: XX | L41: XXXX | M41: =AVERAGE(M40/10) -> 1017.56 | N41: =AVERAGE(N40/10) -> 8.67 | O41: 1 | P41: XXX | Q41: X | R41: XX | S41: XX | T41: XX | U41: XX | V41: =AVERAGE(V30:V39) -> 3.2
A42: MSu | B42: =SUM(B16+B28+B40) -> 402.7 | C42: =SUM(C16+C28+C40) -> 534.1 | D42: =SUM(D16+D28+D40) -> 287.1 | E42: =SUM(E16+E28+E40) -> 254.4 | F42: XXX | G42: XXX, | H42: =SUM(H16+H28+H40) -> 170 | I42: =SUM(I16+I28+I40) -> 49 | J42: XX | L42: =SUM(L16+L28+L40) -> 62.1 | M42: =SUM(M16+M28+M40) -> 30456 | N42: =SUM(N16+N28+N40) -> 311.8 | O42: XXX | P42: =SUM(P16+P28+P40) -> 0 | Q42: X | R42: =SUM(R16+R28+R40) -> 21 | S42: =SUM(S16+S28+S40) -> 1 | T42: =SUM(T16+T28+T40) -> 0 | U42: =SUM(U16+U28+U40) -> 0 | V42: XXX
A43: MMi | B43: =AVERAGE(B6:B15,B18:B27,B30:B39) -> 13.42333333 | C43: =AVERAGE(C42/30) -> 17.80333333 | D43: =AVERAGE(D42/30) -> 9.57 | E43: 8.48 | F43: XXX | G43: =AVERAGE(G6:G15,G18:G27,G30:G39) -> 83 | H43: =AVERAGE(H42/30) -> 5.666666667 | I43: XXXXX | J43: XX | L43: XXXX | M43: =AVERAGE(M42/30) -> 1015.2 | N43: =AVERAGE(N42/30) -> 10.39333333 | O43: =AVERAGE(O6:O15,O18:O27,O30:O39) -> 0.8666666667 | P43: XXX | Q43: X | R43: XX | S43: XX | T43: XX | U43: XX | V43: =AVERAGE(V17,V29,V41) -> 3.1
B45: Norm | C45: % v N.- | D45: Abw. | E45: Zahl der Tage | L45: Niederschlag mm | P45: Sonnensch.-dauer Std
B46: wert | C46: wert | D46: K | E46: Max.d.Lufttemp.°C | L46: >/= 0,1 | O46: =SUM(AE7:AE9) -> 21 | P46: ohne Sonne | V46: 11
A47: TTT | B47: 14.3 | C47: XXXX | D47: =SUM(B43-B47) -> -0.8766666667 | E47: Tropentag/Hitzetag | I47: =SUM(AA7:AA9) -> 0 | L47: >/= 1,0 | O47: =SUM(AF7:AF9) -> 10 | P47: 0,1 bis 0,9 | V47: 5
A48: RRR | B48: 50 | C48: =SUM(I42*100/B48) -> 98 | D48: XXXX | E48: Sommertag | I48: =SUM(AB7:AB9) -> 4 | L48: >/= 3,0 | O48: =SUM(AG7:AG9) -> 3 | P48: >/= 10,0 | V48: =SUM(AC17:AC19) -> 0
A49: sss | B49: 160 | C49: =SUM(L42*100/B49) -> 38.8125 | D49: XXXX | E49: Eistag | I49: =SUM(AC7:AC9) -> 0 | L49: >/=10,0 | O49: =SUM(AH7:AH9) -> 2 | P49: Schneedecke cm
A50: astr. | D50: XXXX | E50: Min.d.Lufttemp.°C | L50: >/= 20,0 | O50: 0 | P50: >/= 1 | V50: =SUM(AE17:AE19) -> 0
A51: mgl. | B51: 375 | C51: =SUM(L42*100/B51) -> 16.56 | D51: XXXX | E51: Frosttag | I51: =SUM(AA12:AA14) -> 0 | L51: Rel. Luftfeuchte 14 Uhr | P51: >/= 3 | V51: =SUM(AF17:AF19) -> 0
A52: sss | D52: XXXX | E52: starker Eistag | I52: =SUM(AB12:AB14) -> 0 | L52: >/=70% | O52: =SUM(AE12:AE14) -> 11 | P52: >/= 10 | V52: =SUM(AG17:AG19) -> 0
L53: </=40% | O53: =SUM(AG12:AG14) -> 1

Sheet Sichtst.
E1: Sichtweitenstatistik
B5: Wetterstation: Köttewitz | F5: Monat: | G5: September | K5: Jahr: | L5: 2013
A7: Dat. | B7: Nebeldauer | C7: Nebel | D7: Dunst | E7: Sicht | F7: Sicht | G7: Sicht | H7: Sicht
B8: in St. u. Min. | E8: mittel | F8: normal | G8: gut | H8: sehr gut
A9: 01. | B9: - | C9: =IF(R9=1,1,"-") -> - | D9: - | E9: - | F9: 1 | G9: 1 | H9: - | N9: =IF(ISNUMBER(B9),B9*24," ") ->  | O9: =IF(ISNUMBER(N9),IF(N9<1,1," ")," ") ->  | P9: =IF(ISNUMBER(N9),IF(N9<8,2," ")," ") ->  | Q9: =IF(ISNUMBER(N9),IF(N9<24,3," ")," ") ->  | R9: =MIN(O9:Q9) -> 0
A10: 02. | B10: - | C10: - | D10: 1 | E10: 1 | F10: 1 | G10: - | H10: - | R10: 0
A11: 03. | B11: - | C11: - | D11: 1 | E11: 1 | F11: - | G11: - | H11: - | R11: 0
A12: 04. | B12: - | C12: - | D12: 1 | E12: 1 | F12: 1 | G12: - | H12: - | R12: 0
A13: 05. | B13: - | C13: - | D13: - | E13: 1 | F13: 1 | G13: - | H13: - | R13: 0
A14: 06. | B14: - | C14: - | D14: - | E14: - | F14: 1 | G14: - | H14: - | R14: 0
A15: 07. | B15: - | C15: - | D15: - | E15: - | F15: 1 | G15: 1 | H15: - | R15: 0
A16: 08. | B16: - | C16: - | D16: - | E16: - | F16: 1 | G16: - | H16: - | R16: 0
A17: 09. | B17: - | C17: - | D17: - | E17: 1 | F17: 1 | G17: - | H17: - | R17: 0
A18: 10. | B18: - | C18: - | D18: - | E18: 1 | F18: 1 | G18: 1 | H18: - | R18: 0
A19: 11. | B19: - | C19: - | D19: - | E19: - | F19: 1 | G19: - | H19: - | R19: 0
A20: 12. | B20: - | C20: - | D20: - | E20: 1 | F20: 1 | G20: - | H20: - | R20: 0
A21: 13. | B21: - | C21: - | D21: 1 | E21: 1 | F21: 1 | G21: - | H21: - | R21: 0
A22: 14. | B22: - | C22: - | D22: - | E22: 1 | F22: - | G22: - | H22: - | R22: 0
A23: 15. | B23: - | C23: - | D23: 1 | E23: 1 | F23: 1 | G23: - | H23: - | R23: 0
A24: 16. | B24: - | C24: - | D24: - | E24: - | F24: 1 | G24: - | H24: - | R24: 0
A25: 17. | B25: - | C25: - | D25: - | E25: - | F25: 1 | G25: 1 | H25: - | R25: 0
A26: 18. | B26: - | C26: - | D26: - | E26: 1 | F26: 1 | G26: - | H26: - | R26: 0
A27: 19. | B27: - | C27: - | D27: - | E27: 1 | F27: 1 | G27: - | H27: - | R27: 0
A28: 20. | B28: - | C28: - | D28: - | E28: 1 | F28: 1 | G28: - | H28: - | R28: 0
A29: 21. | B29: - | C29: - | D29: - | E29: 1 | F29: 1 | G29: - | H29: - | R29: 0
A30: 22. | B30: - | C30: - | D30: - | E30: 1 | F30: 1 | G30: - | H30: - | R30: 0
A31: 23. | B31: - | C31: - | D31: - | E31: 1 | F31: 1 | G31: - | H31: - | R31: 0
A32: 24. | B32: - | C32: - | D32: - | E32: - | F32: 1 | G32: - | H32: - | R32: 0
A33: 25. | B33: - | C33: - | D33: - | E33: 1 | F33: 1 | G33: - | H33: - | R33: 0
A34: 26. | B34: 01:20:00 | C34: 1 | D34: 1 | E34: 1 | F34: 1 | G34: - | H34: - | N34: 1.333333333 | P34: 2 | Q34: 3 | R34: 2
A35: 27. | B35: - | C35: - | D35: 1 | E35: 1 | F35: 1 | G35: - | H35: - | R35: 0
A36: 28. | B36: - | C36: - | D36: - | E36: - | F36: 1 | G36: 1 | H36: - | R36: 0
A37: 29. | B37: - | C37: - | D37: - | E37: - | F37: 1 | G37: - | H37: - | R37: 0
A38: 30. | B38: - | C38: - | D38: - | E38: - | F38: 1 | G38: - | H38: - | R38: 0
A39: Su. | B39: XXXXXXXXX | C39: =SUM(C9:C38) -> 1 | D39: 7 | E39: 19 | F39: 28 | G39: 5 | H39: 0
B41: Anzahl der Nebeltage : | E41: =SUM(C39) -> 1
B42: Anzahl der Tage Sicht >= 50 km : | E42: =SUM(G39) -> 5

Sheet Monatsdiagramm
A1: Klimadiagramm | C1: Wetterstation Köttewitz | I1: (213 m ü. NHN)
A3: September 2013
C5: aktuell | D5: langj. Mittel | E5: Abw. vom lj. Mittel
B6: höchste Temperatur (°C): | C6: =MAX('Daten für Diagr.'!C2:C29) -> 27.2 | D6: am | E6: 2013-09-07
B7: mittlere Temperatur (°C): | C7: ='Daten für Diagr.'!B32 -> 13.42333333 | D7: =Kurztabelle!B47 -> 14.3 | E7: =C7-D7 -> -0.8766666667 | F7: K
B8: tiefste Temperatur (°C): | C8: =MIN('Daten für Diagr.'!D2:D31) -> 1 | D8: am | E8: 2013-09-30
B9: Niederschlagshöhe (mm): | C9: =Kurztabelle!I42 -> 49 | D9: =Kurztabelle!B48 -> 50 | E9: =100/D9*C9 -> 98 | F9: %
B10: Sonnenscheindauer (Std.)*: | C10: =Kurztabelle!L42 -> 62.1 | D10: =Kurztabelle!B49 -> 160 | E10: =100/D10*C10 -> 38.8125 | F10: %
A66: *Die Wetterstation kann, durch geographische Hindernisse, nicht die maximal mögliche Sonnenscheindauer aufzeichnen. Es gilt ein Übergangsprozentsatz von: Nov - Feb 50 %; Mär & Okt 65 %; Apr & Sep 80 %; Mai - August 90 %.
A67: Diese Werte entsprechend annähernd 100 % (Normalwert Köttewitz). Nach 10 Jahren erfolgt die Umstellung des Prozentsatzes nach der örtlichen Aufzeichnung.

Sheet Daten für Diagr.
B1: Td | C1: Tmax | D1: Tmin | E1: RR | F1: Schnee | G1: Sonne | H1: Luftdr. | I1: MWT | J1: GWL | K1: Name | L1: Sonstiges
A2: 2013-09-01 | B2: 14.4 | C2: 17.9 | D2: 11.2 | G2: 2.1 | H2: 1022 | I2: 17.4 | L2: Beginn des Birkenlaubfalles.
A3: 2013-09-02 | B3: 14.5 | C3: 16.8 | D3: 12.7 | E3: 2.1 | H3: 1019.8 | I3: 17.2 | L3: Von 12:50 Uhr - 17:09 Uh; 19:00 Uhr - 21:59 Uhr leichter Dunst. Von 12:50 Uhr - 17:09 Uhr; 19:00 Uhr - 21:59 Uhr Sichteinschränkung durch Niederschlag.
A4: 2013-09-03 | B4: 16.5 | C4: 18.1 | D4: 15.3 | E4: 1.8 | H4: 1023 | I4: 17 | J4: HM | K4: H Hannah | L4: Leicht schwül. Von 22:40 Uhr - 23:59 Uhr starker Dunst. Von 22:20 Uhr - 22:39 Uhr mäßiger Dunst. Von 09:30 Uhr - 10:19 Uhr; 22:00 Uhr - 22:19 Uhr leichter Dunst. Von 09:30 Uhr - 10:19 Uhr Sichteinschränkung durch Niederschlag.
A5: 2013-09-04 | B5: 17.8 | C5: 23.3 | D5: 13.7 | E5: 0.3 | G5: 1.5 | H5: 1024.4 | I5: 16.75 | L5: Mäßig schwül. Von 00:00 Uhr - 08:29 Uhr starker Dunst. Von 08:30 Uhr - 09:59 mäßiger Dunst. Von 10:00 Uhr - 10:29 Uhr leichter Dunst.
A6: 2013-09-05 | B6: 17.6 | C6: 25.1 | D6: 10.9 | E6: 0.1 | G6: 7.8 | H6: 1019 | I6: 16.5 | J6: Sa | L6: Mäßig schwül. Von 01:00 Uhr - 07:19 Uhr Bodennebel.
A7: 2013-09-06 | B7: 18.4 | C7: 25.7 | D7: 12.6 | G7: 8.3 | H7: 1014.9 | I7: 16.25 | K7: H Iris
A8: 2013-09-07 | B8: 19.1 | C8: 27.2 | D8: 11.6 | G8: 7.6 | H8: 1017.5 | I8: 16
A9: 2013-09-08 | B9: 19.7 | C9: 26.9 | D9: 12.8 | E9: 16 | G9: 3.1 | H9: 1017.2 | I9: 15.75 | J9: TrW | K9: T Nandor | L9: Leicht schwül.
A10: 2013-09-09 | B10: 13.8 | C10: 17.9 | D10: 8.8 | E10: 2.1 | G10: 0 | H10: 1015.1 | I10: 15.5 | J10: TrM | M10: Beginn Schneedecke Zugspitze.
A11: 2013-09-10 | B11: 12.5 | C11: 16.9 | D11: 8.1 | E11: 1.7 | G11: 0.2 | H11: 1014.1 | I11: 15.25
A12: 2013-09-11 | B12: 12.1 | C12: 16.1 | D12: 7.6 | E12: 0.1 | G12: 1 | H12: 1012.6 | I12: 15.05
A13: 2013-09-12 | B13: 12.8 | C13: 15.2 | D13: 11.1 | E13: 2 | G13: 0.1 | H13: 1013.2 | I13: 14.85 | L13: Beginn des Weichholzlaubfalles. (Pflaume)
A14: 2013-09-13 | B14: 14.2 | C14: 18.2 | D14: 11.6 | E14: 0.2 | G14: 1.4 | H14: 1017.1 | I14: 14.65 | L14: Von 04:50 Uhr - 09:39 Uhr leichter Dunst.
A15: 2013-09-14 | B15: 16.3 | C15: 21.4 | D15: 13 | G15: 5.7 | H15: 1013.8 | I15: 14.45 | J15: Wz | K15: T Quentin
A16: 2013-09-15 | B16: 14.4 | C16: 16 | D16: 12.9 | E16: 0.7 | H16: 1009.5 | I16: 14.25 | L16: Von 14:40 Uhr - 17:29 Uhr leichter Dunst. Von 14:40 Uhr - 17:29 Uhr Sichteinschränkung durch Niederschlag.
A17: 2013-09-16 | B17: 13.9 | C17: 17.1 | D17: 12.7 | E17: 4.5 | H17: 1002.5 | I17: 14.05 | J17: TrM | K17: T Schorch
A18: 2013-09-17 | B18: 10.2 | C18: 15.4 | D18: 6.4 | G18: 1.1 | H18: 1003.1 | I18: 13.85 | J18: NWz | L18: Beginn des phänologischen Vollherbstes.
A19: 2013-09-18 | B19: 10.1 | C19: 14.2 | D19: 6.3 | E19: 1 | G19: 0.3 | H19: 998.7 | I19: 13.65
A20: 2013-09-19 | B20: 10.8 | C20: 14.1 | D20: 8.7 | E20: 0.9 | G20: 0.6 | H20: 1009.3 | I20: 13.45 | K20: T Tino
A21: 2013-09-20 | B21: 12.7 | C21: 15.3 | D21: 9.6 | E21: 2 | H21: 1013.6 | I21: 13.25
A22: 2013-09-21 | B22: 12.9 | C22: 16.6 | D22: 10.5 | E22: 0.1 | G22: 0.8 | H22: 1023.3 | I22: 13.25 | J22: NWa | K22: H Jette | L22: Beginn der Laubfärbung von Ahorn und Linde.
A23: 2013-09-22 | B23: 13.9 | C23: 16.8 | D23: 10.2 | E23: 0.4 | H23: 1025.5 | I23: 13.1
A24: 2013-09-23 | B24: 15.3 | C24: 16.4 | D24: 14 | E24: 0.5 | H24: 1020 | I24: 12.95 | L24: Erdbeben bei Pirna mit 1,8.
A25: 2013-09-24 | B25: 14.6 | C25: 16.7 | D25: 10.5 | E25: 0.9 | H25: 1015.3 | I25: 12.8
A26: 2013-09-25 | B26: 12.2 | C26: 14.6 | D26: 10 | E26: 0.5 | H26: 1012.7 | I26: 12.65
A27: 2013-09-26 | B27: 11.8 | C27: 15.8 | D27: 6.8 | E27: 11.1 | H27: 1012.1 | I27: 12.5 | J27: HNa | K27: H Karin | L27: Von 10:30 Uhr - 11:49 Uhr leichter Nebel. Von 09:20 - 10:29 Uhr starker Dunst. Von 09:00 Uhr - 09:19 Uhr mäßiger Dunst. Von 03:10 Uhr - 08:59 Uhr; 11:50 Uhr - 11:59 Uhr leichter Dunst.
A28: 2013-09-27 | B28: 7.6 | C28: 13.8 | D28: 3 | G28: 4.8 | H28: 1019 | I28: 12.35 | L28: Von 06:40 Uhr - 10:09 Uhr leichter Dunst.
A29: 2013-09-28 | B29: 7.9 | C29: 15.6 | D29: 1.8 | G29: 5.3 | H29: 1017 | I29: 12.2
A30: 2013-09-29 | B30: 7.8 | C30: 14.8 | D30: 1.7 | G30: 5.3 | H30: 1016.4 | I30: 12.05
A31: 2013-09-30 | B31: 6.9 | C31: 14.2 | D31: 1 | G31: 5.1 | H31: 1014.3 | I31: 11.9 | J31: HFa
A32: Durchschnitt | B32: =AVERAGE(B2:B31) -> 13.42333333 | C32: =AVERAGE(C2:C31) -> 17.80333333 | D32: =AVERAGE(D2:D31) -> 9.57 | H32: =AVERAGE(H2:H31) -> 1015.2 | I32: =AVERAGE(I2:I31) -> 14.36166667
A33: Mittel | B33: 14.3 | E33: 50 | F33: - | G33: 160 | H33: 1016.9
A89: 1
A90: 2
A91: 3
A92: 4
A93: 5
A94: 6
A95: 7
A96: 8
A97: 9
A98: 10
A99: 11
A100: 12
A101: 13
A102: 14
A103: 15
A104: 16
A105: 17
A106: 18
A107: 19
A108: 20
A109: 21
A110: 22
A111: 23
A112: 24
A113: 25
A114: 26
A115: 27
A116: 28
A117: 29
A118: 30
A119: 31

Sheet Erdbodentem.
E1: Erdbodentemperatur
B5: Wetterstation: Köttewitz | F5: Monat: | G5: September | K5: Jahr: | L5: 2013
A7: Dat. | B7: 7 Uhr | C7: 8 Uhr | D7: 12 Uh | E7: 13 Uhr | F7: 20 Uhr | H7: NN
A9: 01. | B9: 15,3 °C/17,7 °C | D9: 22,0 °C/18,4 °C | F9: 18,7 °C/19,6 °C | H9: n
A10: 02. | B10: 14,7 °C/16,8 °C | D10: 18,5 °C/17,1 °C | F10: 16,3 °C/17,3 °C | H10: t
A11: 03. | B11: 15,7 °C/16,2 °C | D11: 17,2 °C/16,3 °C | F11: 17,5 °C/16,8 °C | H11: t
A12: 04. | B12: 16,5 °C/16,6 °C | D12: 21,1 °C/17,2 °C | F12: 19,4 °C/18,8 °C | H12: n
A13: 05. | B13: 13,7 °C/13,6 °C | D13: 21,2 °C/17,3 °C | F13: 21,1 °C/19,8 °C | H13: h
A14: 06. | B14: 14,8 °C/16,2 °C | D14: 21,3 °C/17,6 °C | F14: 21,5 °C/20,1 °C | H14: h | I14: 9
A15: 07. | B15: 15,0 °C/16,0 °C | D15: 25,1 °C/18,1 °C | F15: - | H15: h | I15: 9
A16: 08. | B16: - | D16: 21,1 °C/18,1 °C | F16: - | H16: n | I16: 9
A17: 09. | B17: 17,2 °C/18,5 °C | D17: 18,1 °C/17,6 °C | F17: 14,9 °C/16,3 °C | H17: t
A18: 10. | B18: 12,4 °C/14,2 °C | D18: 15,4 °C/15,0 °C | F18: 14,0 °C/15,2 °C | H18: n
A19: 11. | B19: 10,5 °C/12,6 °C | D19: 14,9 °C/13,3 °C | F19: 13,6 °C/14,4 °C | H19: n
A20: 12. | B20: 12,4 °C/13,2 °C | D20: 14,1 °C/13,3 °C | F20: 13,3 °C/13,0 °C | H20: t
A21: 13. | B21: 13,0 °C/12,8 °C | D21: 15,4 °C/13,2 °C | F21: 13,1 °C/13,4 °C | H21: t
A22: 14. | B22: 14,4 °C/14,5 °C | D22: 18,6 °C/15,4 °C | F22: - | H22: n
A23: 15. | B23: 14,9 °C/15,1 °C | D23: - | F23: - | H23: t
A24: 16. | B24: 13,9 °C/14,8 °C | D24: 15,0 °C/14,8 °C | F24: 15,0 °C/15,5 °C | H24: t
A25: 17. | B25: 11,0 °C/13,1 °C | D25: 14,3 °C/13,5 °C | F25: 12,2 °C/13,0 °C | H25: n
A26: 18. | B26: 9,2 °C/10,1 °C | D26: 12,8 °C/12,8 °C | F26: 12,0 °C713,3 °C | H26: t
A27: 19. | B27: 10,5 °C/11,6 °C | D27: 11,7 °C/12,6 °C | F27: - | H27: t
A28: 20. | B28: 12,8 °C/12,5 °C | D28: - | F28: 13,4 °C/13,1 °C | H28: t
A29: 21. | B29: 13,0 °C/13,0 °C | D29: 15,0 °C/13,7 °C | F29: 13,5 °C/13,6 °C | H29: t
A30: 22. | B30: 12,0 °C/12,6 °C | D30: 15,5 °C/13,7 °C | F30: 15,2 °C/15,0 °C | H30: t
A31: 23. | B31: 13,7 °C/14,0 °C | D31: 15,7 °C714,3 °C | F31: 15,0 °C/15,2 °C | H31: t
A32: 24. | B32: 13,8 °C/14,0 °C | D32: 15,5 °C/14,8 °C | F32: - | H32: t
A33: 25. | B33: 12,5 °C/12,7 °C | D33: 14,5 °C/14,1 °C | F33: 12,8 °C/13,8 °C | H33: t
A34: 26. | B34: 13,5 °C/13,7 °C | D34: 13,9 °C/13,9 °C | F34: 12,2 °C/13,0 °C | H34: t
A35: 27. | B35: 8,7 °C/10,5 °C | D35: 12,5 °C/10,8 °C | F35: 12,0 °C/10,0 °C | H35: n
A36: 28. | B36: 6,1 °C/8,6 °C | D36: 8,9 °C/8,5 °C | F36: 8,6 °C/10,2 °C | H36: n
A37: 29. | B37: 5,9 °C/8,1 °C | D37: 8,3 °C/8,5 °C | F37: - | H37: h
A38: 30. | B38: 5,6 °C/7,0 °C | D38: 7,5 °C/7,2 °C | F38: 7,6 °C/8,8 °C | H38: h
B40: Temperatur - 10 cm/Temperatur - 20 cm
